lending/lending_fUSD_20240705
["ID","MTS","AMOUNT","RATE_DAILY","PERIOD"]
[331288396,1720185072718,1670.83,0.00032357,30]
[331288397,1720185073417,1670.83,0.00032357,30]
[331288398,1720185073689,313.07547724,0.00032357,30]
[331288399,1720185073904,1670.83,0.00032357,30]
[331288400,1720185073980,500.0,0.00032357,30]
[331288401,1720185075205,500.0,0.00032357,30]
[331288402,1720185075638,1670.83,0.00032357,30]
[331288403,1720185076047,500.0,0.00032357,30]
[331288404,1720185076232,500.0,0.00032357,30]
[331288405,1720185076898,1670.91,0.00032357,30]
[331288406,1720185077084,500.95722019,0.00032357,30]
[331288407,1720185077520,500.0,0.00032357,30]
[331288408,1720185077942,500.0,0.00032357,30]
[331288409,1720185078384,500.0,0.00032357,30]
[331288410,1720185079299,361.94,0.00032357,30]
[331288411,1720185080339,500.0,0.00032357,30]
[331288412,1720185080851,500.0,0.00032357,30]
[331288413,1720185081370,500.0,0.00032357,30]
[331288414,1720185081649,500.0,0.00032357,30]
[331288415,1720185082650,262.00752079,0.00032357,30]
[331288416,1720185083771,500.0,0.00032357,30]
[331288417,1720185084143,500.0,0.00032357,30]
[331288418,1720185084705,500.0,0.00032357,30]
[331288419,1720185084781,213.0394917,0.00032357,30]
[331288420,1720185085975,500.0,0.00032357,30]
[331288421,1720185088194,500.0,0.00032357,30]
[331288422,1720185088560,500.0,0.00032357,30]
[331288423,1720185088644,270.8497211,0.00032357,30]
[331288424,1720185088786,500.0,0.00032357,30]
[331288425,1720185089134,291.11514215,0.00032357,30]
[331288426,1720185089186,500.0,0.00032357,30]
[331288427,1720185089384,269.59,0.00032357,30]
[331288428,1720185091566,500.0,0.00032357,30]
[331288429,1720185092717,500.0,0.00032357,30]
[331288430,1720185094092,500.0,0.00032357,30]
[331288431,1720185095244,500.0,0.00032357,30]
[331288432,1720185095745,173.74438569,0.00032357,30]
[331288433,1720185096129,500.0,0.00032357,30]
[331288434,1720185096198,500.0,0.00032357,30]
[331288435,1720185098186,351.56683175,0.00032357,30]
[331288436,1720185098298,500.0,0.00032357,30]
[331288437,1720185099356,500.0,0.00032357,30]
[331288438,1720185099778,368.76210854,0.00032357,30]
[331288439,1720185100380,500.0,0.00032357,30]
[331288440,1720185100986,500.0,0.00032357,30]
[331288441,1720185102255,1514.56,0.00032357,30]
[331288442,1720185102293,402.12676033,0.00032357,30]
[331288443,1720185102513,255.46358384,0.00032357,30]
[331288444,1720185102560,1514.56,0.00032357,30]
[331288445,1720185104191,260.08228652,0.00032357,30]
[331288446,1720185105031,1514.56,0.00032357,30]
[331288447,1720185105363,1514.56,0.00032357,30]
[331288448,1720185106440,355.45521056,0.00032357,30]
[331288449,1720185106680,1514.56,0.00032357,30]
[331288450,1720185107493,1514.56,0.00032357,30]
[331288451,1720185108395,1514.56,0.00032357,30]
[331288452,1720185110406,1514.56,0.00032357,30]
[331288453,1720185110753,354.87194752,0.00032357,30]
[331288454,1720185111123,1514.56,0.00032357,30]
[331288455,1720185111172,194.95694203,0.00032357,30]
[331288456,1720185111212,1514.56,0.00032357,30]
[331288457,1720185113682,374.89877169,0.00032357,30]
[331288458,1720185114350,1514.56,0.00032357,30]
[331288459,1720185115746,1514.56,0.00032357,30]
[331288460,1720185116734,1514.56,0.00032357,30]
[331288461,1720185117114,1514.56,0.00032357,30]
[331288462,1720185117935,206.0,0.00032357,30]
[331288463,1720185118570,1514.56,0.00032357,30]
[331288464,1720185119182,1514.56,0.00032357,30]
[331288465,1720185119790,1514.56,0.00032357,30]
[331288466,1720185120418,1514.56,0.00032357,30]
[331288467,1720185121653,254.92210746,0.00032357,30]
[331288468,1720185121703,165.36822269,0.00032357,30]
[331288469,1720185121753,1514.56,0.00032357,30]
[331288470,1720185122504,1514.56,0.00032357,30]
[331288471,1720185122764,266.93424935,0.00032357,30]
[331288472,1720185124479,241.66809978,0.00032357,30]
[331288473,1720185124527,260.83,0.00032357,30]
[331288474,1720185124687,1514.56,0.00032357,30]
[331288475,1720185124856,1514.56,0.00032357,30]
[331288476,1720185125653,1514.56,0.00032357,30]
[331288477,1720185126023,1514.79680596,0.00032357,30]
[331288478,1720185128323,500.0,0.00032357,30]
[331288479,1720185129412,586.38,0.00032357,30]
[331288480,1720185129471,317.16235017,0.00032357,30]
[331288482,1720185134210,700.99,0.00032357,30]
[331288483,1720185135244,500.0,0.00032357,30]
[331288484,1720185135783,700.99,0.00032357,30]
[331288485,1720185136533,500.0,0.00032357,30]
[331288486,1720185137991,700.99,0.00032357,30]
[331288487,1720185138487,500.0,0.00032357,30]
[331288488,1720185138838,700.99,0.00032357,30]
[331288489,1720185139233,500.0,0.00032357,30]
[331288490,1720185139530,700.99,0.00032357,30]
[331288491,1720185139600,500.0,0.00032357,30]
[331288492,1720185140168,700.99,0.00032357,30]
[331288493,1720185140801,500.0,0.00032357,30]
[331288494,1720185141446,500.0,0.00032357,30]
[331288495,1720185141488,700.99,0.00032357,30]
[331288496,1720185141697,500.0,0.00032357,30]
[331288497,1720185141732,700.99,0.00032357,30]
[331288498,1720185141812,700.99,0.00032357,30]
[331288499,1720185141875,500.0,0.00032357,30]
[331288500,1720185142505,500.0,0.00032357,30]
[331288501,1720185142543,700.99,0.00032357,30]
[331288502,1720185143660,187.96951016,0.00032357,30]
[331288503,1720185144176,500.0,0.00032357,30]
[331288504,1720185144237,700.99,0.00032357,30]
[331288505,1720185144603,500.0,0.00032357,30]
[331288506,1720185144703,700.99,0.00032357,30]
[331288507,1720185145504,500.0,0.00032357,30]
[331288508,1720185145547,700.99,0.00032357,30]
[331288509,1720185146466,500.0,0.00032357,30]
[331288510,1720185146538,700.99,0.00032357,30]
[331288511,1720185148011,500.0,0.00032357,30]
[331288512,1720185148570,700.99,0.00032357,30]
[331288513,1720185148922,251.40974203,0.00032357,30]
[331288514,1720185149114,500.0,0.00032357,30]
[331288515,1720185149170,700.99,0.00032357,30]
[331288516,1720185149389,500.0,0.00032357,30]
[331288517,1720185149479,700.99,0.00032357,30]
[331288518,1720185151466,700.99,0.00032357,30]
[331288519,1720185152769,226.23,0.00032357,30]
[331288520,1720185153476,500.0,0.00032357,30]
[331288521,1720185154266,226.23,0.00032357,30]
[331288522,1720185154408,700.99,0.00032357,30]
[331288523,1720185154514,226.23,0.00032357,30]
[331288524,1720185154612,226.23,0.00032357,30]
[331288525,1720185154747,226.23,0.00032357,30]
[331288526,1720185154798,700.99,0.00032357,30]
[331288527,1720185155123,226.23,0.00032357,30]
[331288528,1720185155210,226.23,0.00032357,30]
[331288529,1720185155275,226.23,0.00032357,30]
[331288530,1720185155399,500.0,0.00032357,30]
[331288531,1720185155449,226.23,0.00032357,30]
[331288532,1720185155726,226.23,0.00032357,30]
[331288533,1720185155780,266.85147326,0.00032357,30]
[331288534,1720185156030,226.23,0.00032357,30]
[331288535,1720185156307,226.23,0.00032357,30]
[331288536,1720185156403,700.99,0.00032357,30]
[331288537,1720185156558,500.0,0.00032357,30]
[331288538,1720185156788,226.23,0.00032357,30]
[331288539,1720185157486,226.23,0.00032357,30]
[331288540,1720185158280,226.23,0.00032357,30]
[331288541,1720185159353,432.39356644,0.00032357,30]
[331288542,1720185159946,700.99,0.00032357,30]
[331288543,1720185160591,226.23,0.00032357,30]
[331288544,1720185161946,226.23,0.00032357,30]
[331288545,1720185162602,700.99,0.00032357,30]
[331288546,1720185162930,226.23,0.00032357,30]
[331288547,1720185163518,226.23,0.00032357,30]
[331288548,1720185164151,226.23,0.00032357,30]
[331288549,1720185164772,701.1916,0.00032357,30]
[331288550,1720185165359,226.23,0.00032357,30]
[331288551,1720185165635,226.23,0.00032357,30]
[331288552,1720185166011,226.23,0.00032357,30]
[331288553,1720185166334,226.2635302,0.00032357,30]
[331288554,1720185166784,-2050.0,0.00011574,2]
[331288555,1720185169055,344.38510052,0.00032357,30]
[331288556,1720185170109,500.0,0.00032357,30]
[331288557,1720185170770,500.0,0.00032357,30]
[331288558,1720185171437,500.0,0.00032357,30]
[331288559,1720185172044,500.0,0.00032357,30]
[331288560,1720185172656,463.44,0.00032357,30]
[331288561,1720185173035,500.0,0.00032357,30]
[331288562,1720185174038,500.0,0.00032357,30]
[331288563,1720185174736,500.0,0.00032357,30]
[331288564,1720185175120,984.25,0.00032357,30]
[331288565,1720185175458,500.0,0.00032357,30]
[331288566,1720185175970,500.0,0.00032357,30]
[331288567,1720185176371,500.0,0.00032357,30]
[331288568,1720185176427,500.0,0.00032357,30]
[331288569,1720185176472,597.96091963,0.00032357,30]
[331288570,1720185176831,4205.22,0.00032357,30]
[331288571,1720185176980,4205.22,0.00032357,30]
[331288572,1720185177028,4205.22,0.00032357,30]
[331288573,1720185177438,4205.22,0.00032357,30]
[331288574,1720185177987,307.89649072,0.00032357,30]
[331288575,1720185178968,4205.22,0.00032357,30]
[331288576,1720185179234,177.77025968,0.00032357,30]
[331288577,1720185179956,4205.22,0.00032357,30]
[331288578,1720185180581,172.99537534,0.00032357,30]
[331288579,1720185180670,4205.22,0.00032357,30]
[331288580,1720185181287,4205.22,0.00032357,30]
[331288581,1720185183052,260.57846511,0.00032357,30]
[331288582,1720185183173,162.16061194,0.00032357,30]
[331288583,1720185183210,4205.22,0.00032357,30]
[331288584,1720185185051,4205.22,0.00032357,30]
[331288585,1720185185776,4205.22,0.00032357,30]
[331288586,1720185186519,4205.22,0.00032357,30]
[331288587,1720185186601,4205.22,0.00032357,30]
[331288588,1720185187752,4205.22,0.00032357,30]
[331288589,1720185188509,4205.22,0.00032357,30]
[331288590,1720185190192,353.79172897,0.00032357,30]
[331288591,1720185190770,4205.22,0.00032357,30]
[331288592,1720185192701,4205.22,0.00032357,30]
[331288593,1720185193257,4205.22,0.00032357,30]
[331288594,1720185194208,4205.22,0.00032357,30]
[331288595,1720185194659,1666.66,0.00032357,30]
[331288596,1720185195336,4205.22,0.00032357,30]
[331288597,1720185195891,1666.66,0.00032357,30]
[331288598,1720185196225,4205.22,0.00032357,30]
[331288599,1720185196365,1666.66,0.00032357,30]
[331288600,1720185197318,4205.22,0.00032357,30]
[331288601,1720185197570,1666.66,0.00032357,30]
[331288602,1720185198802,236.52880451,0.00032357,30]
[331288603,1720185199184,4205.22,0.00032357,30]
[331288604,1720185199466,252.90923714,0.00032357,30]
[331288605,1720185199814,501.15298063,0.00032357,30]
[331288606,1720185200037,1666.66,0.00032357,30]
[331288607,1720185200627,4205.38839817,0.00032357,30]
[331288608,1720185200870,500.0,0.00032357,30]
[331288609,1720185201212,181.63767087,0.00032357,30]
[331288610,1720185201448,1666.66,0.00032357,30]
[331288611,1720185201509,500.0,0.00032357,30]
[331288612,1720185201580,1666.66,0.00032357,30]
[331288613,1720185201642,500.0,0.00032357,30]
[331288614,1720185201923,1666.66,0.00032357,30]
[331288615,1720185202254,500.0,0.00032357,30]
[331288616,1720185202538,1666.66,0.00032357,30]
[331288617,1720185202687,500.0,0.00032357,30]
[331288618,1720185203586,348.23775038,0.00032357,30]
[331288619,1720185203772,380.92,0.00032357,30]
[331288620,1720185203904,1666.66,0.00032357,30]
[331288621,1720185204574,500.0,0.00032357,30]
[331288622,1720185205135,363.39086725,0.00032357,30]
[331288623,1720185205403,1666.66,0.00032357,30]
[331288624,1720185205683,500.0,0.00032357,30]
[331288625,1720185205729,1666.66,0.00032357,30]
[331288626,1720185205767,310.11374,0.00032357,30]
[331288627,1720185206479,500.0,0.00032357,30]
[331288628,1720185206541,1666.66,0.00032357,30]
[331288629,1720185207262,443.56,0.00032357,30]
[331288630,1720185207688,164.2194845,0.00032357,30]
[331288631,1720185207726,1666.66,0.00032357,30]
[331288632,1720185209450,1666.66,0.00032357,30]
[331288633,1720185209971,1666.66,0.00032357,30]
[331288634,1720185211434,1666.66,0.00032357,30]
[331288635,1720185212112,1666.66,0.00032357,30]
[331288636,1720185213820,1666.66,0.00032357,30]
[331288637,1720185214559,1666.66,0.00032357,30]
[331288638,1720185215806,1666.66,0.00032357,30]
[331288639,1720185216099,1666.66,0.00032357,30]
[331288640,1720185216584,1666.66,0.00032357,30]
[331288641,1720185218198,1666.82,0.00032357,30]
[331288642,1720185218287,383.93419855,0.00032357,30]
[331288643,1720185221082,457.76324548,0.00032357,30]
[331288644,1720185226600,288.69920904,0.00032357,30]
[331288645,1720185231629,1843.86,0.00032357,30]
[331288646,1720185231879,1843.86,0.00032357,30]
[331288647,1720185232276,1843.86,0.00032357,30]
[331288648,1720185232496,1843.86,0.00032357,30]
[331288649,1720185232649,174.48111641,0.00032357,30]
[331288650,1720185232760,1843.86,0.00032357,30]
[331288651,1720185233503,1843.86,0.00032357,30]
[331288652,1720185233984,1843.86,0.00032357,30]
[331288653,1720185234983,1843.86,0.00032357,30]
[331288654,1720185235874,1843.86,0.00032357,30]
[331288655,1720185235926,1843.86,0.00032357,30]
[331288656,1720185235977,1843.86,0.00032357,30]
[331288657,1720185236037,1843.86,0.00032357,30]
[331288658,1720185236175,1843.86,0.00032357,30]
[331288659,1720185236598,1843.86,0.00032357,30]
[331288660,1720185236661,230.50322111,0.00032357,30]
[331288661,1720185238732,1843.86,0.00032357,30]
[331288662,1720185238818,1843.86,0.00032357,30]
[331288663,1720185238878,1843.86,0.00032357,30]
[331288664,1720185238927,281.67397466,0.00032357,30]
[331288665,1720185238969,1843.86,0.00032357,30]
[331288666,1720185239073,1843.86,0.00032357,30]
[331288667,1720185239367,1843.86,0.00032357,30]
[331288668,1720185242589,1843.86,0.00032357,30]
[331288669,1720185242772,1843.86,0.00032357,30]
[331288670,1720185243071,1843.86,0.00032357,30]
[331288671,1720185243331,238.08,0.00032357,30]
[331288672,1720185243370,1843.90560067,0.00032357,30]
[331288673,1720185245716,200.03490418,0.00032357,30]
[331288674,1720185247328,184.15,0.00032357,30]
[331288675,1720185250760,500.0,0.00032357,30]
[331288676,1720185251024,500.0,0.00032357,30]
[331288677,1720185251962,500.0,0.00032357,30]
[331288678,1720185252999,500.0,0.00032357,30]
[331288679,1720185253299,500.0,0.00032357,30]
[331288680,1720185253387,500.0,0.00032357,30]
[331288681,1720185253606,500.0,0.00032357,30]
[331288682,1720185253881,500.0,0.00032357,30]
[331288683,1720185254181,500.0,0.00032357,30]
[331288684,1720185254447,500.0,0.00032357,30]
[331288685,1720185254493,173.60851977,0.00032357,30]
[331288686,1720185254738,500.0,0.00032357,30]
[331288687,1720185255013,573.58447067,0.00032357,30]
[331288688,1720185257024,369.49850278,0.0003235,30]
[331288689,1720185262921,263.31,0.0003235,30]
[331288690,1720185271530,227.22,0.0003235,30]
[331288691,1720185272211,500.0,0.0003235,30]
[331288692,1720185272678,211.69287895,0.0003235,30]
[331288693,1720185273036,245.61,0.0003235,30]
[331288694,1720185281416,2038.47,0.0003235,30]
[331288695,1720185282644,2038.47,0.0003235,30]
[331288696,1720185283204,2038.47,0.0003235,30]
[331288697,1720185283647,2038.47,0.0003235,30]
[331288698,1720185284082,2038.47,0.0003235,30]
[331288699,1720185284122,2038.47,0.0003235,30]
[331288700,1720185284196,2038.47,0.0003235,30]
[331288701,1720185284233,2038.47,0.0003235,30]
[331288702,1720185284304,2038.47,0.0003235,30]
[331288703,1720185284357,2038.47,0.0003235,30]
[331288704,1720185284558,2038.47,0.0003235,30]
[331288705,1720185284830,2038.47,0.0003235,30]
[331288706,1720185285113,2038.47,0.0003235,30]
[331288707,1720185285585,2038.47,0.0003235,30]
[331288708,1720185285809,350.66579555,0.0003235,30]
[331288709,1720185285856,2038.47,0.0003235,30]
[331288710,1720185286712,2038.47,0.0003235,30]
[331288711,1720185287412,2038.47,0.0003235,30]
[331288712,1720185287867,2038.47,0.0003235,30]
[331288713,1720185288827,2038.47,0.0003235,30]
[331288714,1720185288912,2038.47,0.0003235,30]
[331288715,1720185289221,2038.47,0.0003235,30]
[331288716,1720185289509,2038.47,0.0003235,30]
[331288717,1720185290072,2038.47,0.0003235,30]
[331288718,1720185290119,2038.65,0.0003235,30]
[331288719,1720185295440,174.94481493,0.0003235,30]
[331288720,1720185302552,500.0,0.0003235,30]
[331288721,1720185302634,500.0,0.0003235,30]
[331288722,1720185302702,392.15601167,0.0003235,30]
[331288723,1720185302887,500.0,0.0003235,30]
[331288724,1720185303160,500.0,0.0003235,30]
[331288725,1720185303451,500.0,0.0003235,30]
[331288726,1720185303723,565.63169084,0.0003235,30]
[331288727,1720185305819,176.81798228,0.0003235,30]
[331288728,1720185306110,207.96017533,0.0003235,30]
[331288729,1720185307290,277.51478265,0.0003235,30]
[331288730,1720185309309,359.42343633,0.0003235,30]
[331288731,1720185312984,943.24,0.0003235,30]
[331288732,1720185313560,943.24,0.0003235,30]
[331288733,1720185314114,315.71376092,0.0003235,30]
[331288734,1720185314749,943.24,0.0003235,30]
[331288735,1720185315422,943.24,0.0003235,30]
[331288736,1720185315788,943.24,0.0003235,30]
[331288737,1720185315846,-2800.0,0.00011574,2]
[331288738,1720185315945,943.24,0.0003235,30]
[331288739,1720185316440,943.24,0.0003235,30]
[331288740,1720185316524,943.24,0.0003235,30]
[331288741,1720185316619,943.24,0.0003235,30]
[331288742,1720185316685,943.24,0.0003235,30]
[331288743,1720185317632,943.24,0.0003235,30]
[331288744,1720185318965,943.24,0.0003235,30]
[331288745,1720185320350,943.24,0.0003235,30]
[331288746,1720185321011,943.24,0.0003235,30]
[331288747,1720185321371,943.24,0.0003235,30]
[331288748,1720185321580,943.24,0.0003235,30]
[331288749,1720185321702,943.24,0.0003235,30]
[331288750,1720185321803,943.24,0.0003235,30]
[331288751,1720185321858,943.24,0.0003235,30]
[331288752,1720185321900,943.24,0.0003235,30]
[331288753,1720185322003,943.24,0.0003235,30]
[331288754,1720185322057,943.24,0.0003235,30]
[331288755,1720185322352,943.24,0.0003235,30]
[331288756,1720185323969,943.28578155,0.0003235,30]
[331288757,1720185325413,622.23831712,0.0003235,30]
[331288758,1720185327045,237.97760535,0.0003235,30]
[331288759,1720185328363,310.86412284,0.0003235,30]
[331288760,1720185331827,388.38470533,0.0003235,30]
[331288761,1720185334466,273.29592286,0.0003235,30]
[331288762,1720185336796,191.63565056,0.0003235,30]
[331288763,1720185337578,263.49832268,0.0003235,30]
[331288764,1720185340328,362.32515639,0.0003235,30]
[331288765,1720185340395,297.90056352,0.0003235,30]
[331288766,1720185340642,178.03400342,0.0003235,30]
[331288767,1720185341438,242.91314743,0.0003235,30]
[331288768,1720185342400,266.04,0.0003235,30]
[331288769,1720185343595,399.9334925,0.0003235,30]
[331288770,1720185345672,155.6660619,0.0003235,30]
[331288771,1720185350270,153.34144593,0.0003235,30]
[331288772,1720185350320,159.56,0.00025257,120]
[331288773,1720185350595,213.82774803,0.0003235,30]
[331288774,1720185350656,351.13456319,0.0003235,30]
[331288775,1720185351441,314.8185145,0.0003235,30]
[331288776,1720185353872,345.88479451,0.0003235,30]
[331288777,1720185354476,315.55019352,0.0003235,30]
[331288778,1720185354938,355.01336738,0.0003235,30]
[331288779,1720185356282,288.44477449,0.0003235,30]
[331288780,1720185360352,306.81902435,0.0003235,30]
[331288781,1720185361156,384.64,0.0003235,30]
[331288782,1720185363456,232.05654844,0.0003235,30]
[331288783,1720185368889,227.42072039,0.0003235,30]
[331288784,1720185370236,500.0,0.0003235,30]
[331288785,1720185370728,222.57,0.0003235,30]
[331288786,1720185371206,500.0,0.0003235,30]
[331288787,1720185371256,389.82035515,0.0003235,30]
[331288788,1720185371970,235.46049087,0.0003235,30]
[331288789,1720185373176,260.73,0.0003235,30]
[331288790,1720185373463,322.48919718,0.0003235,30]
[331288791,1720185373799,246.77351756,0.0003235,30]
[331288792,1720185374375,256.6754556,0.0003235,30]
[331288793,1720185375370,313.72,0.0003235,30]
[331288794,1720185375434,313.72,0.0003235,30]
[331288795,1720185375647,313.72,0.0003235,30]
[331288796,1720185376140,313.72,0.0003235,30]
[331288797,1720185376471,291.50244259,0.0003235,30]
[331288798,1720185376515,313.72,0.0003235,30]
[331288799,1720185376568,238.14,0.0003235,30]
[331288800,1720185377079,313.72,0.0003235,30]
[331288801,1720185377125,313.72,0.0003235,30]
[331288802,1720185377398,313.72,0.0003235,30]
[331288803,1720185377512,214.22796624,0.0003235,30]
[331288804,1720185377660,167.77795938,0.0003235,30]
[331288805,1720185378007,313.72,0.0003235,30]
[331288806,1720185378290,313.72,0.0003235,30]
[331288807,1720185379109,313.72,0.0003235,30]
[331288808,1720185379355,313.72,0.0003235,30]
[331288809,1720185380440,313.72,0.0003235,30]
[331288810,1720185380503,313.72,0.0003235,30]
[331288811,1720185380783,313.72,0.0003235,30]
[331288812,1720185381095,313.72,0.0003235,30]
[331288813,1720185381661,313.72,0.0003235,30]
[331288814,1720185381713,208.67198124,0.0003235,30]
[331288815,1720185381756,313.72,0.0003235,30]
[331288816,1720185381944,313.72,0.0003235,30]
[331288817,1720185382215,313.72,0.0003235,30]
[331288818,1720185382490,313.72,0.0003235,30]
[331288819,1720185382895,313.72,0.0003235,30]
[331288820,1720185383222,313.72,0.0003235,30]
[331288821,1720185383835,313.72752642,0.0003235,30]
[331288822,1720185384823,393.37733756,0.0003235,30]
[331288823,1720185387673,271.36811613,0.0003235,30]
[331288824,1720185387752,310.52945082,0.0003235,30]
[331288825,1720185391808,292.31260646,0.0003235,30]
[331288826,1720185394132,191.65972823,0.0003235,30]
[331288827,1720185395692,298.33213987,0.0003235,30]
[331288828,1720185397625,188.54,0.0003235,30]
[331288829,1720185399616,217.63511309,0.0003235,30]
[331288830,1720185400082,485.0,0.0003235,30]
[331288831,1720185402372,170.84968817,0.0003235,30]
[331288832,1720185404050,311.25747243,0.0003235,30]
[331288833,1720185404302,187.56875696,0.0003235,30]
[331288834,1720185405860,258.7101974,0.0003235,30]
[331288835,1720185406457,254.36095102,0.0003235,30]
[331288837,1720185408404,369.23553181,0.0003235,30]
[331288838,1720185409588,319.38787321,0.0003235,30]
[331288839,1720185409700,329.99983025,0.0003235,30]
[331288840,1720185411034,226.85189841,0.0003235,30]
[331288841,1720185414915,500.0,0.0003235,30]
[331288842,1720185415175,500.0,0.0003235,30]
[331288843,1720185415827,500.0,0.0003235,30]
[331288844,1720185415891,500.0,0.0003235,30]
[331288845,1720185416185,500.0,0.0003235,30]
[331288846,1720185416473,500.0,0.0003235,30]
[331288847,1720185416745,500.0,0.0003235,30]
[331288848,1720185417030,500.0,0.0003235,30]
[331288849,1720185417563,500.0,0.0003235,30]
[331288850,1720185417657,501.26473903,0.0003235,30]
[331288851,1720185418490,342.0,0.0003235,30]
[331288852,1720185419739,248.09535065,0.0003235,30]
[331288853,1720185419824,319.12770681,0.0003235,30]
[331288854,1720185421133,213.28267307,0.0003235,30]
[331288855,1720185424092,309.33325063,0.0003235,30]
[331288856,1720185425224,205.50754196,0.0003235,30]
[331288857,1720185425873,289.25977609,0.0003235,30]
[331288858,1720185427710,284.46148892,0.0003235,30]
[331288859,1720185428000,205.52977259,0.0003235,30]
[331288860,1720185428838,177.47130635,0.0003235,30]
[331288861,1720185429931,347.5774468,0.0003235,30]
[331288862,1720185430015,336.68460835,0.0003235,30]
[331288864,1720185433405,1069.44,0.0003235,30]
[331288865,1720185433954,1069.44,0.0003235,30]
[331288866,1720185434026,1069.44,0.0003235,30]
[331288867,1720185434478,360.26572337,0.0003235,30]
[331288868,1720185434522,1069.44,0.0003235,30]
[331288869,1720185434879,1069.44,0.0003235,30]
[331288870,1720185435068,295.68416305,0.0003235,30]
[331288871,1720185435132,1069.44,0.0003235,30]
[331288872,1720185435228,1069.44,0.0003235,30]
[331288873,1720185435854,1069.44,0.0003235,30]
[331288874,1720185436483,1069.44,0.0003235,30]
[331288875,1720185436524,286.32175341,0.0003235,30]
[331288876,1720185436596,1069.44,0.0003235,30]
[331288877,1720185436793,209.0409156,0.0003235,30]
[331288878,1720185436842,153.40457335,0.0003235,30]
[331288879,1720185437410,1069.44,0.0003235,30]
[331288880,1720185437655,1069.44,0.0003235,30]
[331288881,1720185438032,1069.44,0.0003235,30]
[331288882,1720185438194,1069.44,0.0003235,30]
[331288883,1720185438691,1069.44,0.0003235,30]
[331288884,1720185438743,252.89802883,0.0003235,30]
[331288885,1720185438790,1069.44,0.0003235,30]
[331288886,1720185439067,1069.44,0.0003235,30]
[331288887,1720185439350,1069.44,0.0003235,30]
[331288888,1720185439684,1069.44,0.0003235,30]
[331288889,1720185439754,319.04779917,0.0003235,30]
[331288890,1720185439972,1069.44,0.0003235,30]
[331288891,1720185440573,1069.44,0.0003235,30]
[331288892,1720185440664,1069.44,0.0003235,30]
[331288893,1720185440891,1069.44,0.0003235,30]
[331288894,1720185441203,1069.56,0.0003235,30]
[331288895,1720185442876,284.85247247,0.0003235,30]
[331288896,1720185443325,189.51741177,0.0003235,30]
[331288897,1720185443876,500.0,0.0003235,30]
[331288899,1720185445601,313.53031933,0.0003235,30]